bitfinex-derivatives/quotes_SOLF0:USTF0_20241002
["timestamp","ask_amount","ask_price","bid_price","bid_amount"]
[1727893434262,0.5,144.36,144.3,26.66]
[1727893434769,0.5,144.36,144.29,0.12502]
[1727893436160,0.5,144.36,144.31,3.4647]
[1727893436161,3.4642,144.35,144.31,3.4647]
[1727893436360,0.5,144.36,144.29,0.12502]
[1727893436750,3.4644,144.33,144.3,3.465]
[1727893436951,0.5,144.36,144.29,0.12502]
[1727893437352,3.4648,144.32,144.29,0.12502]
[1727893437773,0.5,144.36,144.29,0.12502]
[1727893438862,3.4643,144.34,144.29,0.12502]
[1727893439358,3.4643,144.34,144.31,3.4647]
[1727893439557,3.4645,144.33,144.29,0.12502]
[1727893439760,0.5,144.36,144.29,0.12502]
[1727893440058,3.4649,144.32,144.29,0.12502]
[1727893440261,0.5,144.36,144.29,0.12502]
[1727893440460,27.16,144.36,144.29,0.12502]
[1727893440657,3.4649,144.32,144.29,0.12502]
[1727893440961,0.5,144.36,144.29,0.12502]
[1727893441162,0.5,144.36,144.3,3.4649]
[1727893441363,0.5,144.36,144.29,0.12502]
[1727893441761,3.4651,144.3,144.29,0.12502]
[1727893441954,27.16,144.36,144.29,0.12502]
[1727893442159,0.5,144.36,144.29,0.12502]
[1727893442364,3.4645,144.33,144.29,0.12502]
[1727893442663,0.5,144.36,144.29,0.12502]
[1727893442865,3.4646,144.33,144.29,0.12502]
[1727893443065,0.5,144.36,144.29,0.12502]
[1727893443466,3.465,144.31,144.29,0.12502]
[1727893443667,0.5,144.36,144.29,0.12502]
[1727893443866,3.4656,144.28,144.24,34.78]
[1727893444069,8.12,144.32,144.23,0.12502]
[1727893444275,1.3627,144.31,144.23,0.12502]
[1727893444757,1.3783,144.3,144.25,3.4662]
[1727893444959,1.3783,144.3,144.23,0.12502]
[1727893444960,1.3783,144.3,144.24,26.66]
[1727893445166,1.3783,144.3,144.26,26.66]
[1727893445361,1.3627,144.31,144.3,3.4651]
[1727893445565,4.8427,144.34,144.29,26.66]
[1727893445763,1.3783,144.34,144.29,26.66]
[1727893447068,1.3783,144.34,144.31,3.4649]
[1727893447264,1.3783,144.34,144.29,26.66]
[1727893447766,1.3783,144.34,144.3,3.465]
[1727893447968,0.12502,144.35,144.31,26.66]
[1727893448169,0.12502,144.35,144.34,3.4642]
[1727893448660,0.12502,144.35,144.33,30.1243]
[1727893449268,0.12502,144.35,144.34,3.4642]
[1727893449967,0.5,144.36,144.35,3.4639]
[1727893450859,0.5,144.36,144.33,8.12]
[1727893451369,0.5,144.36,144.34,3.4641]
[1727893451569,0.5,144.36,144.33,34.78]
[1727893452369,0.5,144.36,144.35,3.4639]
[1727893452673,0.5,144.38,144.35,26.66]
[1727893452865,2.62502,144.41,144.37,3.4634]
[1727893453068,2.62502,144.41,144.38,34.78]
[1727893453467,0.5,144.43,144.4,26.66]
[1727893454068,0.5,144.43,144.39,8.12]
[1727893454263,0.5,144.43,144.38,34.78]
[1727893454864,0.5,144.43,144.41,3.4624]
[1727893455061,0.5,144.43,144.38,34.78]
[1727893455572,0.5,144.51,144.42,26.66]
[1727893455766,2.0,144.52,144.48,26.66]
[1727893455963,2.0,144.52,144.41,26.78502]
[1727893455964,0.62502,144.53,144.51,26.66]
[1727893456175,0.62502,144.53,144.52,3.4599]
[1727893456371,0.62502,144.53,144.49,26.66]
[1727893456574,0.62502,144.53,144.49,38.2404]
[1727893457172,0.62502,144.53,144.49,34.78]
[1727893457565,0.62502,144.53,144.49,26.66]
[1727893457767,0.62502,144.53,144.49,38.2405]
[1727893459174,0.62502,144.53,144.5,3.4603]
[1727893459372,0.62502,144.53,144.49,34.78]
[1727893460277,0.62502,144.53,144.46,26.66]
[1727893460473,2.6501,144.52,144.45,8.32]
[1727893460677,2.6501,144.52,144.44,34.98]
[1727893461077,2.6501,144.52,144.46,26.66]
[1727893461492,2.6501,144.52,144.44,34.98]
[1727893461780,8.32,144.51,144.41,11.90742]
[1727893461968,8.32,144.51,144.41,8.44502]
[1727893462773,27.28502,144.53,144.49,26.66]
[1727893462774,0.62502,144.53,144.49,26.66]
[1727893463370,0.62502,144.53,144.51,3.4599]
[1727893463575,3.2502,144.56,144.52,26.66]
[1727893463777,0.5,144.56,144.54,26.66]
[1727893463982,0.5,144.56,144.55,3.4591]
[1727893464172,0.5,144.58,144.55,3.4591]
[1727893464372,0.5,144.58,144.54,26.66]
[1727893464570,0.5,144.58,144.57,26.66]
[1727893465679,0.5,144.58,144.56,46.6187]
[1727893466676,0.5,144.58,144.56,43.16]
[1727893466881,0.5,144.58,144.54,8.32]
[1727893467076,0.5,144.58,144.51,43.16]
[1727893467277,0.5,144.58,144.51,51.48]
[1727893467777,3.4591,144.56,144.52,3.4597]
[1727893467986,0.5,144.58,144.51,51.48]
[1727893468283,0.5,144.58,144.53,43.16]
[1727893468878,3.4593,144.55,144.53,43.16]
[1727893469874,0.5,144.58,144.53,43.16]
[1727893470380,3.4593,144.55,144.53,43.16]
[1727893470580,0.5,144.58,144.53,43.16]
[1727893470776,3.4598,144.53,144.51,43.16]
[1727893471077,0.5,144.58,144.49,46.6204]
[1727893471275,3.4591,144.56,144.49,43.16]
[1727893471472,1.4095,144.55,144.47,0.12502]
[1727893471882,3.4608,144.48,144.47,0.12502]
[1727893472182,0.12502,144.53,144.44,43.16]
[1727893472484,3.4609,144.48,144.45,3.4614]
[1727893472672,2.82772,144.53,144.44,43.16]
[1727893473075,2.82772,144.53,144.46,43.16]
[1727893473478,3.4599,144.52,144.48,3.4608]
[1727893473682,2.82772,144.53,144.49,43.16]
[1727893474185,2.82772,144.53,144.46,43.16]
[1727893474582,3.4601,144.51,144.46,46.6211]
[1727893474775,2.82772,144.53,144.46,43.16]
[1727893475689,3.4605,144.5,144.47,3.461]
[1727893475983,2.82772,144.53,144.46,43.16]
[1727893476182,2.82772,144.53,144.42,43.16]
[1727893476487,43.16,144.52,144.39,8.32]
[1727893476785,3.462,144.44,144.41,3.58752]
[1727893476980,8.32,144.49,144.41,0.12502]
[1727893477976,3.4622,144.42,144.41,0.12502]
[1727893478492,8.32,144.49,144.35,43.28502]
[1727893478671,43.28502,144.47,144.35,43.28502]
[1727893478876,43.16,144.45,144.35,0.12502]
[1727893479084,9.6479,144.44,144.35,0.12502]
[1727893479482,1.3895,144.43,144.35,0.12502]
[1727893479690,3.4637,144.36,144.35,0.12502]
[1727893479876,1.3895,144.43,144.35,0.12502]
[1727893480080,3.4632,144.38,144.35,3.58892]
[1727893480581,1.3895,144.43,144.35,43.28502]
[1727893480789,3.4629,144.4,144.36,3.4637]
[1727893481085,1.3895,144.43,144.36,3.4637]
[1727893481281,3.4631,144.39,144.36,3.4637]
[1727893481483,3.4631,144.39,144.35,46.74882]
[1727893481678,1.3895,144.43,144.35,43.28502]
[1727893481883,1.3895,144.43,144.35,0.12502]
[1727893482380,3.4634,144.38,144.35,0.12502]
[1727893482582,1.3895,144.43,144.35,0.12502]
[1727893483382,3.4635,144.37,144.35,0.12502]
[1727893483577,1.3895,144.43,144.35,0.12502]
[1727893483784,1.3283,144.42,144.35,0.12502]
[1727893483977,3.4637,144.36,144.35,0.12502]
[1727893486390,3.4634,144.38,144.35,0.12502]
[1727893486692,1.3283,144.42,144.35,0.12502]
[1727893486891,9.6683,144.42,144.35,0.12502]
[1727893487077,9.6683,144.42,144.35,3.58882]
[1727893487279,9.6683,144.42,144.35,0.12502]
[1727893487478,3.4637,144.36,144.35,0.12502]
[1727893488293,13.11456896,144.42,144.35,0.12502]
[1727893488792,9.6683,144.42,144.35,0.12502]
[1727893489586,3.4637,144.36,144.35,0.12502]
[1727893489785,0.12502,144.41,144.33,0.5]
[1727893490497,3.4642,144.34,144.33,0.5]
[1727893490694,8.0,144.36,144.3,0.5]
[1727893490893,3.4649,144.31,144.3,0.5]
[1727893492394,1.2934,144.33,144.3,0.5]
[1727893493089,3.4648,144.32,144.3,0.5]
[1727893493288,1.2934,144.33,144.3,0.5]
[1727893494093,3.4648,144.32,144.3,0.5]
[1727893494297,1.3719,144.35,144.3,27.11]
[1727893494498,3.4638,144.36,144.3,27.11]
[1727893494690,3.4638,144.36,144.33,3.4642]
[1727893494902,1.3482,144.38,144.33,26.61]
[1727893495385,1.3482,144.38,144.33,30.0744]
[1727893495811,1.2858,144.4,144.3,0.5]
[1727893496096,1.2858,144.4,144.35,26.61]
[1727893496399,3.4631,144.39,144.36,3.4635]
[1727893496806,1.2858,144.4,144.35,26.61]
[1727893497105,1.2858,144.4,144.35,30.0739]
[1727893497603,3.4634,144.38,144.35,30.0739]
[1727893497800,1.2858,144.4,144.35,30.0739]
[1727893498197,1.2858,144.4,144.35,26.61]
[1727893498698,3.4637,144.36,144.33,30.0743]
[1727893499100,1.2858,144.4,144.33,26.61]
[1727893499699,3.4641,144.35,144.33,26.61]
[1727893499905,3.4641,144.35,144.33,30.0744]
[1727893500198,1.2858,144.4,144.33,26.61]
[1727893500788,45.0058,144.4,144.33,26.61]
[1727893501815,53.0058,144.4,144.3,27.11]
[1727893502104,3.4649,144.31,144.3,0.5]
[1727893502688,3.4643,144.34,144.3,0.5]
[1727893503291,45.0058,144.4,144.33,26.61]
[1727893503695,45.0058,144.4,144.33,30.0742]
[1727893503898,45.0058,144.4,144.33,26.61]
[1727893504313,45.0058,144.4,144.35,26.61]
[1727893504517,45.0058,144.4,144.33,26.61]
[1727893504799,45.0058,144.4,144.31,26.61]
[1727893505510,45.0058,144.4,144.33,26.61]
[1727893506010,3.463,144.39,144.36,3.4635]
[1727893506500,3.4632,144.38,144.35,3.4638]
[1727893506804,45.0058,144.4,144.3,0.5]
[1727893507009,3.4649,144.31,144.3,0.5]
[1727893508005,3.4651,144.3,144.29,0.12502]
[1727893508205,1.3042,144.3,144.25,0.5]
[1727893508609,3.466,144.27,144.25,0.5]
[1727893508916,1.3042,144.3,144.25,0.5]
[1727893509606,3.4661,144.26,144.25,0.5]
[1727893509904,1.3042,144.3,144.25,0.5]
[1727893510408,3.4658,144.28,144.25,0.5]
[1727893510612,1.3042,144.3,144.27,3.4657]
[1727893510804,3.4654,144.29,144.25,0.5]
[1727893511199,2.7677,144.33,144.28,3.4654]
[1727893511401,2.7677,144.33,144.25,27.11]
[1727893511402,3.4647,144.32,144.25,27.11]
[1727893511598,0.12502,144.35,144.28,26.61]
[1727893512301,0.12502,144.35,144.25,27.11]
[1727893512703,8.02,144.34,144.25,27.11]
[1727893512999,3.4656,144.28,144.25,3.9662]
[1727893513194,11.54193195,144.34,144.25,0.5]
[1727893513407,29.3293,144.33,144.25,0.5]
[1727893513609,3.4659,144.27,144.25,0.5]
[1727893514312,3.4661,144.26,144.25,0.5]
[1727893516114,3.4666,144.24,144.23,0.62502]
[1727893516306,1.2971,144.29,144.23,0.62502]
[1727893516507,29.3293,144.33,144.23,0.62502]
[1727893516508,2.7193,144.33,144.23,35.25502]
[1727893516712,3.465,144.31,144.28,3.4655]
[1727893517005,2.7193,144.33,144.25,26.61]
[1727893517605,0.12502,144.35,144.28,26.61]
[1727893517805,3.4644,144.33,144.29,3.4652]
[1727893518111,3.4644,144.33,144.28,26.61]
[1727893518511,3.4647,144.32,144.3,3.465]
[1727893518706,0.12502,144.35,144.28,26.61]
[1727893518904,3.4646,144.33,144.3,3.465]
[1727893519106,3.4646,144.33,144.28,34.51]
[1727893519507,3.4646,144.33,144.3,3.465]
[1727893519708,0.12502,144.35,144.28,7.9]
[1727893519907,0.12502,144.35,144.29,43.27]
[1727893520607,0.12502,144.35,144.3,3.4649]
[1727893520810,0.12502,144.35,144.29,43.27]
[1727893521012,0.12502,144.35,144.32,43.27]
[1727893521204,0.12502,144.35,144.34,3.4642]
[1727893521806,0.12502,144.35,144.29,43.7756]
[1727893522419,0.12502,144.35,144.34,3.4642]
[1727893522818,43.72,144.4,144.34,43.27]
[1727893523501,43.72,144.4,144.33,7.88]
[1727893524420,43.72,144.4,144.32,43.27]
[1727893524615,43.72,144.4,144.32,51.15]
[1727893524810,3.4633,144.38,144.34,3.464]
[1727893525011,43.72,144.4,144.32,51.15]
[1727893525213,43.72,144.4,144.35,3.4637]
[1727893525214,3.463,144.39,144.35,3.4637]
[1727893525515,43.72,144.4,144.32,51.15]
[1727893525716,3.4634,144.38,144.34,3.4641]
[1727893525915,43.72,144.4,144.32,51.15]
[1727893526313,3.4632,144.38,144.34,3.4641]
[1727893526719,3.4632,144.38,144.32,51.15]
[1727893526915,43.72,144.4,144.32,51.15]
[1727893527416,43.72,144.4,144.34,3.4639]
[1727893527620,3.4633,144.38,144.32,51.15]
[1727893527925,43.72,144.4,144.33,3.4643]
[1727893528110,3.4634,144.38,144.32,51.15]
[1727893528418,43.72,144.4,144.32,51.15]
[1727893528615,3.4634,144.38,144.34,3.4641]
[1727893529916,43.72,144.4,144.32,51.15]
[1727893530117,43.72,144.4,144.37,43.27]
[1727893530320,43.72,144.4,144.37,51.15]
[1727893530711,43.72,144.4,144.34,7.88]
[1727893530909,3.4633,144.38,144.35,3.4638]
[1727893532322,3.4636,144.37,144.34,11.3441]
[1727893532622,43.72,144.4,144.34,7.88]
[1727893532812,3.4634,144.38,144.35,3.4639]
[1727893533007,43.72,144.4,144.34,7.88]
[1727893533208,86.99,144.4,144.3,43.27]
[1727893533407,1.2991,144.39,144.3,43.27]
[1727893533816,3.4635,144.37,144.34,3.464]
[1727893534220,1.2991,144.39,144.3,43.27]
[1727893534614,1.2991,144.39,144.32,43.27]
[1727893535117,3.4641,144.35,144.32,3.4646]
[1727893535425,1.2991,144.39,144.3,43.27]
[1727893536019,3.4636,144.37,144.3,43.27]
[1727893536227,1.2991,144.39,144.3,43.27]
[1727893536416,3.4639,144.35,144.33,3.4643]
[1727893536617,1.2991,144.39,144.3,43.27]
[1727893536925,3.4636,144.37,144.34,3.4641]
[1727893537125,1.2991,144.39,144.3,43.27]
[1727893537520,2.7182,144.38,144.3,43.27]
[1727893538125,3.4638,144.36,144.3,43.27]
[1727893538325,2.7182,144.38,144.3,43.27]
[1727893538528,43.72,144.4,144.32,43.27]
[1727893539026,3.4631,144.39,144.36,3.4635]
[1727893539225,43.72,144.4,144.36,3.4635]
[1727893539926,3.4633,144.38,144.35,3.4638]
[1727893540230,43.72,144.4,144.34,43.27]
[1727893540731,3.4631,144.39,144.36,3.4637]
[1727893540928,43.72,144.4,144.32,43.27]
[1727893541630,43.72,144.4,144.33,3.4642]
[1727893542127,43.72,144.4,144.32,26.61]
[1727893542328,43.72,144.4,144.29,35.94762]
[1727893542551,26.61,144.39,144.29,0.12502]
[1727893542729,3.4651,144.3,144.29,0.12502]
[1727893542928,10.5192,144.38,144.29,0.12502]
[1727893543136,1.3444,144.37,144.29,0.12502]
[1727893543326,1.3444,144.37,144.3,3.465]
[1727893543521,1.3444,144.37,144.29,0.12502]
[1727893544528,3.4646,144.33,144.3,3.465]
[1727893546035,1.3444,144.37,144.29,0.12502]
[1727893546830,1.3444,144.37,144.3,3.4651]
[1727893547233,1.3444,144.37,144.29,0.12502]
[1727893547920,3.4648,144.32,144.29,3.59032]
[1727893548424,3.464,144.35,144.29,0.12502]
[1727893548623,1.3444,144.37,144.29,0.12502]
[1727893549031,3.4648,144.32,144.29,3.59022]
[1727893549637,3.4649,144.31,144.29,3.59022]
[1727893549835,3.4649,144.31,144.29,0.12502]
[1727893551439,7.56,144.36,144.29,0.12502]
[1727893551440,3.4651,144.3,144.29,0.12502]
[1727893551740,30.04381528,144.34,144.29,0.12502]
[1727893551942,26.61,144.34,144.23,34.79502]
[1727893552143,30.01713208,144.34,144.23,34.79502]
[1727893552334,30.01713208,144.34,144.23,8.18502]
[1727893552639,26.61,144.32,144.23,0.62502]
[1727893552838,26.61,144.29,144.23,0.62502]
[1727893553034,26.61,144.29,144.2,0.5]
[1727893553035,3.4672,144.22,144.2,0.5]
[1727893553230,7.56,144.26,144.2,0.5]
[1727893555237,7.56,144.26,144.2,3.9674]
[1727893555442,7.56,144.26,144.2,0.5]
[1727893555840,26.61,144.27,144.2,0.5]
[1727893555841,3.4668,144.23,144.21,3.4672]
[1727893556147,1.3835,144.28,144.2,0.5]
[1727893556842,3.4664,144.25,144.22,3.4669]
[1727893557343,3.4667,144.24,144.21,3.4671]
[1727893557642,1.3835,144.28,144.2,0.5]
[1727893557941,3.4664,144.25,144.22,3.4669]
[1727893558145,2.7804,144.28,144.2,0.5]
[1727893558734,3.4667,144.24,144.21,3.4672]
[1727893559338,3.467,144.23,144.2,0.5]
[1727893559532,2.7804,144.28,144.2,0.5]
[1727893561130,3.4658,144.27,144.24,3.4664]
[1727893561334,2.7804,144.28,144.2,0.5]
[1727893562443,3.4663,144.26,144.22,3.4668]
[1727893562644,2.7804,144.28,144.22,3.4668]
[1727893562945,3.4666,144.24,144.22,3.4668]
[1727893563149,2.7804,144.28,144.22,3.4668]
[1727893563746,3.4664,144.25,144.22,3.4668]
[1727893563945,2.7804,144.28,144.21,3.4672]
[1727893564338,3.4668,144.24,144.21,3.4672]
[1727893564646,2.7804,144.28,144.21,3.4672]
[1727893564944,2.7804,144.28,144.2,0.5]
[1727893565138,1.3969,144.28,144.2,27.11]
[1727893565738,1.3969,144.28,144.26,3.466]
[1727893565943,1.3969,144.28,144.2,27.11]
[1727893566150,1.3969,144.28,144.24,3.4664]
[1727893566151,3.4659,144.27,144.24,3.4664]
[1727893566344,1.3969,144.28,144.2,27.11]
[1727893566541,3.466,144.27,144.2,27.11]
[1727893566743,1.3969,144.28,144.23,3.4666]
[1727893566942,1.3969,144.28,144.2,0.5]
[1727893567243,26.61,144.27,144.2,0.5]
[1727893567444,1.3969,144.28,144.2,0.5]
[1727893568454,4.8626,144.28,144.25,3.4662]
[1727893568651,4.8626,144.28,144.21,26.61]
[1727893568652,1.3969,144.28,144.21,26.61]
[1727893569048,3.466,144.27,144.24,3.4665]
[1727893569654,1.3969,144.28,144.21,26.61]
[1727893569655,4.8626,144.28,144.25,3.4662]
[1727893569950,4.8626,144.28,144.21,26.61]
[1727893569951,1.3969,144.28,144.21,26.61]
[1727893570158,0.12502,144.29,144.28,3.4656]
[1727893570546,0.12502,144.29,144.24,7.56]
[1727893570749,0.12502,144.29,144.27,3.4658]
[1727893571258,3.59052,144.29,144.26,3.4661]
[1727893571563,0.12502,144.29,144.24,7.56]
[1727893571950,0.12502,144.29,144.25,26.61]
[1727893572352,0.12502,144.29,144.28,3.4656]
[1727893573666,0.12502,144.29,144.28,37.6356]
[1727893575962,0.12502,144.35,144.28,34.17]
[1727893576162,3.58892,144.35,144.28,34.17]
[1727893576366,3.58892,144.35,144.3,26.61]
[1727893576367,0.12502,144.35,144.3,26.61]
[1727893576575,0.12502,144.35,144.28,7.56]
[1727893576576,0.12502,144.35,144.32,26.61]
[1727893576759,0.12502,144.35,144.34,3.4642]
[1727893578779,43.72,144.4,144.38,3.463]
[1727893579773,43.72,144.4,144.34,26.61]
[1727893579976,43.72,144.4,144.32,7.18]
[1727893580372,3.4638,144.36,144.33,3.4643]
[1727893580575,43.72,144.4,144.33,3.4643]
[1727893580774,43.72,144.4,144.31,7.16]
[1727893581076,3.4638,144.36,144.33,3.4644]
[1727893581979,43.72,144.4,144.31,7.16]
[1727893582285,3.4639,144.35,144.32,3.4645]
[1727893582772,43.72,144.4,144.32,3.4645]
[1727893582972,3.4638,144.36,144.32,3.4645]
[1727893583777,3.4638,144.36,144.31,7.16]
[1727893583973,3.4635,144.37,144.31,7.16]
[1727893584170,43.72,144.4,144.31,7.16]
[1727893584779,43.72,144.4,144.32,26.61]
[1727893585181,3.4634,144.38,144.34,3.464]
[1727893585688,43.72,144.4,144.35,3.4638]
[1727893585689,3.4631,144.39,144.35,3.4638]
[1727893585877,43.72,144.4,144.32,26.61]
[1727893586576,43.72,144.4,144.31,7.16]
[1727893587071,70.33,144.4,144.29,0.12502]
[1727893587276,70.33,144.4,144.29,7.28502]
[1727893587682,3.4644,144.34,144.3,3.465]
[1727893587885,7.16,144.38,144.3,3.465]
[1727893588080,7.16,144.38,144.29,0.12502]
[1727893588081,3.9942,144.37,144.29,0.12502]
[1727893588279,3.9942,144.37,144.29,3.59042]
[1727893588588,3.9942,144.37,144.29,0.12502]
[1727893589085,26.61,144.35,144.29,0.12502]
[1727893589269,3.9942,144.37,144.29,0.12502]
[1727893589885,3.4643,144.34,144.31,3.4647]
[1727893590682,3.9942,144.37,144.3,3.465]
[1727893590683,3.4645,144.33,144.3,3.465]
[1727893590879,3.9942,144.37,144.29,0.12502]
[1727893591193,3.464,144.35,144.29,0.12502]
[1727893591484,3.9942,144.37,144.31,26.61]
[1727893591881,3.9942,144.37,144.35,3.4639]
[1727893592074,3.9942,144.37,144.31,26.61]
[1727893592275,3.9942,144.37,144.3,7.16]
[1727893592481,3.4637,144.36,144.33,3.4643]
[1727893593089,3.4637,144.36,144.3,7.16]
[1727893593290,3.9942,144.37,144.3,7.16]
[1727893593782,3.9942,144.37,144.29,0.12502]
[1727893594093,11.1542,144.37,144.29,0.12502]
[1727893594590,26.61,144.36,144.29,0.12502]
[1727893594773,3.4651,144.3,144.29,0.12502]
[1727893594977,10.67407088,144.33,144.23,7.28502]
[1727893595279,7.16,144.33,144.25,3.4661]
[1727893595476,10.67857521,144.33,144.25,3.4661]
[1727893595686,10.67857521,144.33,144.23,0.12502]
[1727893596289,26.61,144.31,144.23,0.12502]
[1727893596475,3.4662,144.26,144.23,3.59182]
[1727893596674,7.16,144.29,144.23,0.12502]
[1727893596877,3.4666,144.24,144.23,0.12502]
[1727893597479,3.4668,144.23,144.2,3.9674]
[1727893597688,26.61,144.27,144.2,0.5]
[1727893597885,1.2796,144.22,144.2,0.5]
[1727893598281,1.2796,144.22,144.18,0.5]
[1727893598987,3.4674,144.21,144.18,0.5]
[1727893599185,1.2796,144.22,144.18,0.5]
[1727893599392,3.4678,144.19,144.18,0.5]
[1727893599586,7.16,144.21,144.13,0.5]
[1727893599993,26.61,144.2,144.13,0.5]
[1727893600290,26.61,144.17,144.11,0.12502]
[1727893600500,26.61,144.17,144.1,0.5]
[1727893600501,7.16,144.16,144.1,0.5]
[1727893600884,26.61,144.15,144.08,0.5]
[1727893601090,3.4698,144.11,144.08,0.5]
[1727893601288,7.18,144.12,144.08,0.5]
[1727893601590,3.4707,144.07,144.05,0.62502]
[1727893601785,26.61,144.1,144.05,0.62502]
[1727893601977,3.4709,144.06,144.05,0.62502]
[1727893602177,33.79,144.08,144.03,0.5]
[1727893602393,33.79,144.08,144.0,0.5]
[1727893602695,3.4719,144.02,144.0,0.5]
[1727893602900,7.18,144.04,144.0,0.5]
[1727893603284,3.4719,144.02,144.0,0.5]
[1727893603600,7.18,144.04,144.0,0.5]
[1727893604088,3.472,144.02,144.0,0.5]
[1727893605000,3.4721,144.01,144.0,0.5]
[1727893605292,26.61,144.03,143.99,0.12502]
[1727893605789,26.61,144.03,143.98,0.5]
[1727893605790,3.4726,143.99,143.98,0.5]
[1727893606391,3.473,143.98,143.95,0.5]
[1727893606590,6.9,144.0,143.95,0.5]
[1727893606794,26.61,143.98,143.93,0.62502]
[1727893607396,3.4738,143.95,143.93,0.62502]
[1727893607700,6.9,143.96,143.93,0.62502]
[1727893607888,3.4744,143.92,143.9,0.5]
[1727893608092,6.9,143.96,143.9,0.5]
[1727893608797,33.51,143.96,143.9,0.5]
[1727893609395,3.4745,143.91,143.9,0.5]
[1727893610590,6.9,143.92,143.87,0.12502]
[1727893610795,26.61,143.91,143.87,0.12502]
[1727893611199,26.61,143.91,143.85,0.5]
[1727893611592,10.3949,143.9,143.85,0.5]
[1727893611798,3.4749,143.9,143.85,0.5]
[1727893611993,6.92,143.9,143.85,0.5]
[1727893612197,3.4752,143.89,143.85,0.5]
[1727893612700,0.12502,143.93,143.85,0.5]
[1727893612701,7.04502,143.93,143.85,0.5]
[1727893612901,0.12502,143.93,143.86,26.61]
[1727893613198,0.12502,143.93,143.91,3.4745]
[1727893613789,3.59912,143.93,143.88,3.4752]
[1727893613997,0.12502,143.93,143.86,33.53]
[1727893614199,0.12502,143.93,143.87,1.27689961]
[1727893614403,0.12502,143.93,143.91,3.4743]
[1727893614607,0.12502,143.93,143.88,26.61]
[1727893614808,0.12502,143.93,143.89,1.27669839]
[1727893615004,0.12502,143.93,143.9,6.92]
[1727893615298,7.04502,143.99,143.91,27.88654776]
[1727893615299,0.12502,143.99,143.91,27.88654776]
[1727893615799,0.12502,143.99,143.91,26.61]
[1727893616904,3.59762,143.99,143.95,3.4734]
[1727893617404,0.12502,143.99,143.96,3.4733]
[1727893617803,0.12502,143.99,143.91,26.61]
[1727893618001,0.12502,143.99,143.98,3.4728]
[1727893618807,0.12502,143.99,143.95,26.61]
[1727893619002,0.12502,143.99,143.94,6.92]
[1727893619506,0.12502,143.99,143.98,3.4728]
[1727893620211,0.12502,143.99,143.94,6.92]
[1727893621209,0.12502,143.99,143.98,3.4728]
[1727893622006,0.12502,143.99,143.94,6.92]
[1727893622202,0.12502,143.99,143.95,1.27615014]
[1727893622507,0.12502,143.99,143.93,6.92]
[1727893622704,0.12502,143.99,143.92,3.4741]
[1727893622899,0.12502,143.99,143.89,1.3909]